Cogmind - Beta 14 @@@ ROGUE MODE // 2024.08.11 @ 17:19:54 Player: Lunace Result: Destroyed by Autobeam Turret with Autobeam Performance ------------- Evolutions (0) 0 Regions Visited (2) 400 Robots Destroyed (31) 155 Value Destroyed (821) 821 Prototype IDs (13) 260 Alien Tech Used (0) 0 Bonus (-104) -104 TOTAL SCORE: 1532 Bonus ------- Friendly Fire -104 Cogmind --------- Core Integrity 0/250 Matter 270/300 Energy 70/100 System Corruption 0% Temperature Cool (6) Movement Walking (130) Location -10/Subcaves Parts ------- > --- POWER (1) -------- (None) > --- PROPULSION (2) --- Cargo Legs > --- UTILITY (2) ------ (None) > --- WEAPON (2) ------- Dirty Datajack Makeshift Spear > --- INVENTORY (5) ---- Subdweller Power Source Subdweller Beam Cannon Peak State ------------ > --- POWER ------------ Improved Ion Engine > --- PROPULSION ------- Cargo Legs > --- UTILITY ---------- (None) > --- WEAPON ----------- Dirty Datajack Makeshift Spear > --- INVENTORY -------- Subdweller Power Source Subdweller Beam Cannon Grenade Launcher [Rating: 28] Favorites ----------- Power Improved Ion Engine Engine Improved Ion Engine Propulsion Light Treads Treads Light Treads Leg Cargo Legs Wheel Wheel Utility Large Storage Unit Device Seismic Detector Storage Large Storage Unit Protection Light Armor Plating Weapon Grenade Launcher Energy Cannon Subdweller Beam Cannon Ballistic Gun Light Assault Rifle Launcher Grenade Launcher Special Weapon Flamer Piercing Weapon Makeshift Spear Special Melee Weapon Dirty Datajack Build | -11 -10 -10 ------- Run | Yrd Mat Sub Slots Evolved . | . . . Power . | . . . Propulsion . | . . . Utility . | . . . Weapon . | . . . Parts Attached 33 | 7 5 21 Power 3 | 1 1 1 Engine 3 | 1 1 1 Core . | . . . Reactor . | . . . Propulsion 7 | 2 . 5 Treads 2 | 2 . . Leg 1 | . . 1 Wheel 4 | . . 4 Hover . | . . . Flight . | . . . Utility 6 | 2 2 2 Device 1 | 1 . . Storage 2 | 1 1 . Processor . | . . . Hackware . | . . . Protection 3 | . 1 2 Artifact . | . . . Weapon 17 | 2 2 13 Energy Gun . | . . . Energy Cannon 1 | . . 1 Ballistic Gun 5 | 2 1 2 Ballistic Cannon . | . . . Launcher 5 | . 1 4 Special Weapon 2 | . . 2 Impact Weapon . | . . . Slashing Weapon . | . . . Piercing Weapon 2 | . . 2 Special Melee Weapon 2 | . . 2 Unidentified Prototypes . | . . . Parts Lost 8 | . . 8 Power 1 | . . 1 Propulsion 2 | . . 2 Utility 1 | . . 1 Weapon 4 | . . 4 Highest Loss Streak 2 | . . 2 To Critical Strikes . | . . . Average Slot Usage (%) 89 | . 100 83 Engine 13 | . 14 13 Treads 16 | . 28 9 Leg 1 | . . 2 Wheel 7 | . . 11 Device 1 | . 3 . Storage 8 | . 14 5 Protection 11 | . 10 11 Ballistic Gun 12 | . 26 3 Launcher 11 | . 1 18 Special Melee Weapon 1 | . . 1 Peak Build Rating 28 | 7 7 28 Average Rating 10 | 5 6 13 On Entrance 4 | . 7 7 Naked Turns . | . . . Heaviest Build 36 | 11 33 36 Greatest Support 55 | 40 40 55 Greatest Overweight (x) 11 | . . 11 Average Overweight (x) . | . . . Largest Inventory Capacity 15 | 8 15 15 Average Capacity 10 | 7 13 9 Most Carried 11 | 1 7 11 Average Carried 4 | . 3 6 Final Capacity 15 | 8 15 5 Final Carried 7 | 1 7 2 Class Distribution -------------------- 100% | Mutant Dominant Class ---------------- Mutant | -10/Materials Mutant | -10/Subcaves Resources | -11 -10 -10 ----------- Run | Yrd Mat Sub Matter Collected 993 | 228 272 493 Remotely . | . . . Salvage Created 822 | 11 449 362 Parts 59 | 1 34 24 Haulers Intercepted . | . . . Recyclers Shooed 2 | 1 1 . Parts Field Recycled . | . . . Retrieved Matter . | . . . Parts Self-Destructed 7 | . . 7 Prevented . | . . . Kills | -11 -10 -10 ------- Run | Yrd Mat Sub Combat Hostiles Destroyed 25 | . 11 14 Melee 1 | . . 1 Guns 10 | . 9 1 AOE 14 | . 2 12 Classes Destroyed 9 | 1 5 3 Worker 2 | . 2 . Tunneler 1 | 1 . . Recycler 1 | . 1 . Watcher 1 | . 1 . Swarmer 7 | . 3 4 Grunt 10 | . 8 2 Sentry 1 | . . 1 Cobbler 1 | . . 1 Subdweller 8 | . . 8 Best Kill Streak 5 | 1 5 4 Combat Bots Only 4 | . 4 4 Max Kills in Single Turn 2 | 1 2 2 Gunslinging . | . . . Exploded 2 | . 1 2 Melee 1 | . . 1 Uniques/NPCs Destroyed . | . . . Combat | -11 -10 -10 -------- Run | Yrd Mat Sub Hostile Shots Fired 171 | . 42 129 Missed 67 | . 14 53 Damage Taken 1592 | . 322 1270 Core 255 | . 43 212 Absorbed by Shields . | . . . Core Remaining (%) 100 | 100 . . Volleys Fired 89 | 5 49 35 Largest 2 | 2 2 2 Hottest 200 | 40 50 200 Shots Fired 160 | 10 95 55 Gun 117 | 10 89 18 Cannon 2 | . . 2 Launcher 33 | . 6 27 Special 8 | . . 8 Kinetic 117 | 10 89 18 Thermal 10 | . . 10 Explosive 33 | . 6 27 Electromagnetic . | . . . Robot Hit Streak 29 | 7 8 29 Robot Miss Streak 3 | 2 3 1 Penetration Max . | . . . Secondary Targets . | . . . Shots Hit Robots 109 | 8 55 46 Core Hits 66 | 3 32 31 Critical Kills 1 | 1 . . Critical Parts Destroyed . | . . . Critical Strikes 1 | 1 . . Destroy 1 | 1 . . Melee Attacks 11 | . . 11 Impact . | . . . Slashing . | . . . Piercing 11 | . . 11 Sneak Attacks 3 | . . 3 Combat Hostiles 3 | . . 3 Follow-up Attacks . | . . . Damage Inflicted 2403 | 66 772 1565 Guns 761 | 66 543 152 Cannons . | . . . Explosions 1377 | . 227 1150 Melee 196 | . . 196 Ramming 2 | . 2 . Kinetic 761 | 66 543 152 Thermal 67 | . . 67 Explosive 1377 | . 227 1150 Electromagnetic . | . . . Impact . | . . . Slashing . | . . . Piercing 196 | . . 196 Highest Corruption . | . . . Average Corruption . | . . . Corruption Purged . | . . . Corruption Blocked . | . . . Overload Shots . | . . . Overflow Damage 19 | . 1 18 Projectiles . | . . . Explosions 1 | . 1 . Melee 18 | . . 18 Knockbacks . | . . . Impact . | . . . Kinetic . | . . . Secondary . | . . . Self-Inflicted Damage 190 | . . 190 Shots 7 | . . 7 Rammed 1 | . 1 . Targets Rammed 1 | . 1 . Kicked . | . . . Crushed . | . . . Highest Temperature 122 | . 21 122 Average Temperature 20 | . 7 56 Received Heat Transfer 555 | . 159 396 Siege Activations . | . . . Robots Corrupted . | . . . Combat Hostiles . | . . . Parts Fried . | . . . Impact Corruptions . | . . . Robots Melted . | . . . Combat Hostiles . | . . . Parts Melted . | . . . Heat Transferred 480 | . . 480 Parts Sabotaged . | . . . Parts Stolen . | . . . Parts Stripped . | . . . Power Chain Reactions . | . . . Alert | -11 -10 -10 ------- Run | Yrd Mat Sub Peak Influence 301 | 5 301 . Initial 3 | . 3 . Average 116 | 1 131 . Maximum Alert Level 1 | . 1 . Low Security (%) 83 | 100 81 . Level 1 16 | . 18 . Level 2 . | . . . Level 3 . | . . . Level 4 . | . . . Level 5 . | . . . High Security . | . . . Max Security . | . . . Squads Dispatched 2 | . 2 . Investigation 1 | . 1 . Extermination . | . . . Reinforcement 1 | . 1 . Assault . | . . . Garrison . | . . . Intercept . | . . . Searches Triggered . | . . . Construction Impeded . | . . . Haulers Reinforced . | . . . Active Scanning Responses . | . . . Cargo Convoy Interrupts . | . . . Stealth | -11 -10 -10 --------- Run | Yrd Mat Sub Distress Signals 2 | . 2 . Communications Jammed . | . . . Distress Signals . | . . . Times Spotted 36 | . 18 18 Peak Tracking Total 6 | . 5 6 Tactical Retreats 2 | . 2 . Traps | -11 -10 -10 ------- Run | Yrd Mat Sub Traps Triggered 4 | . 1 3 Indirectly . | . . . Trap Hack Attempts . | . . . Triggered . | . . . Disarmed . | . . . Reprogrammed . | . . . Reused . | . . . Traps Extracted . | . . . Installed . | . . . Triggered . | . . . Machines | -11 -10 -10 ---------- Run | Yrd Mat Sub Machines Disabled 2 | . 1 1 Max in Single Turn 1 | . 1 1 Machines Repaired . | . . . Machines Dismantled . | . . . Machines Sabotaged . | . . . Overloaded Fab Kills . | . . . Hacking | -11 -10 -10 --------- Run | Yrd Mat Sub Machines Accessed 7 | . 5 2 Terminals 4 | . 4 . Fabricators . | . . . Repair Stations . | . . . Recycling Units 1 | . 1 . Scanalyzers . | . . . Garrison Access . | . . . Total Hacks 20 | . 15 5 Successful 10 | . 5 5 Failed 10 | . 10 . Catastrophic 1 | . 1 . Database Lockouts . | . . . Manual 10 | . 10 . Terminals 13 | . 13 . Fabricators . | . . . Repair Stations . | . . . Recycling Units 2 | . 2 . Scanalyzers . | . . . Garrison Access . | . . . Terminal Hacks 8 | . 3 5 Record 4 | . . 4 Prototype ID Bank 1 | . 1 . Unreport Threat 1 | . 1 . Locate Traps 1 | . 1 . Derelict Proto ID Bank 1 | . . 1 Fabricator Hacks . | . . . Repair Station Hacks . | . . . Recycling Unit Hacks . | . . . Scanalyzer . | . . . Garrison Access Hacks . | . . . Unauthorized Hacks 2 | . 2 . Terminals 2 | . 2 . Botnet 2 | . 2 . Fabricators . | . . . Repair Stations . | . . . Recycling Units . | . . . Scanalyzers . | . . . Garrison Access . | . . . Data Cores Recovered . | . . . Used . | . . . Hacking Detections 5 | . 5 . Full Trace Events . | . . . Feedback Events . | . . . Feedback Blocked . | . . . Robot Schematics Acquired . | . . . Robots Built . | . . . Authchips . | . . . Time . | . . . Total Robot Build Rating . | . . . Part Schematics Acquired . | . . . Parts Built . | . . . Authchips . | . . . Time . | . . . Total Part Build Rating . | . . . Parts Repaired . | . . . Time . | . . . Parts Recycled . | . . . Recycled Matter . | . . . Retrieved Matter . | . . . Retrieved Components . | . . . Parts Scanalyzed . | . . . Part Schematics Acquired . | . . . Parts Damaged . | . . . Bothacking | -11 -10 -10 ------------ Run | Yrd Mat Sub Used RIF Installer . | . . . Robots Hacked . | . . . Non-combat . | . . . Combat . | . . . Robot Hacks Applied . | . . . Relay Couplers Released . | . . . Fabnet Peak Effective % . | . . . Robots Rewired . | . . . Allies Hacked . | . . . Hacks Repelled . | . . . Allies | -11 -10 -10 -------- Run | Yrd Mat Sub Total Allies 2 | . . 2 Largest Group 1 | . . 1 Highest-Rated Group 16 | . . 16 Highest-Rated Ally 16 | . . 16 Total Orders . | . . . Ally Attacks . | . . . Total Damage . | . . . Kills . | . . . Allies Corrupted . | . . . Allies Melted . | . . . Intel | -11 -10 -10 ------- Run | Yrd Mat Sub Robot Analysis Total . | . . . Derelict Logs Recovered 1 | . . 1 Drone Launches . | . . . Drone Recoveries . | . . . Exploration | -11 -10 -10 ------------- Run | Yrd Mat Sub Turns Passed 2550 | 120 914 1516 Spaces Moved 1437 | 62 268 1107 Core 5 | 4 . 1 Treads 627 | 58 268 301 Legs 206 | . . 206 Wheels 599 | . . 599 Hover . | . . . Flight . | . . . Fastest Speed 50 | 50 160 95 Average Speed 129 | 152 160 120 Slowest Speed 600 | 160 160 600 Overloaded Moves . | . . . Propulsion Burnouts . | . . . Robots Hopped . | . . . Cave-ins Triggered . | . . . Exploration Rate (%) 41 | 4 56 65 Regions Visited 2 Branch Regions 1 Pre-discovered Areas 2 | . . 2 Known Exits Taken . | . . . Unknown Exits Taken 2 | 1 1 . Scrap Searched 2 | . . 2 Spaces Dug 7 | . . 7 Terrain Destroyed 159 | . 19 140 Melee . | . . . Projectile . | . . . AOE 159 | . 19 140 Terrain Rammed . | . . . Walls Destroyed . | . . . Machines Disabled . | . . . Actions | -11 -10 -10 --------- Run | Yrd Mat Sub Total 1968 | 76 669 1223 Wait 366 | 2 339 25 Move 1435 | 61 267 1107 Hop . | . . . Pick Up 12 | 1 5 6 Fast Attach 13 | 7 1 5 Attach 7 | . . 7 Detach 3 | . . 3 Swap 13 | . 4 9 Drop 17 | . 3 14 Fire 89 | 5 49 35 Melee 11 | . . 11 Ram . | . . . Kick . | . . . Crush 1 | . 1 . Escape Stasis . | . . . Rewire . | . . . Trap . | . . . Miscellaneous 1 | . . 1 Route ------- -11/Scrapyard -10/Materials (discovered 3 exits: [*Mat] / [*Min] / *Sub) -10/Subcaves (discovered 2 exits: [*Mat] / *Rec) History --------- Turn | Location | Event 11 | -11/Scrapyard | Discovered new exit (range 15) 121 | -11/Scrapyard | Entered Materials 320 | -10/Materials | Build established: Mutant 385 | -10/Materials | Discovered new exit (range 13) 481 | -10/Materials | Discovered new exit (range 12) 1023 | -10/Materials | Discovered new exit (range 9) 1035 | -10/Materials | Entered Subcaves 1058 | -10/Subcaves | Discovered new exit (range 10) 1559 | -10/Subcaves | Ambushed by Subdweller buried in earth 1569 | -10/Subcaves | Shifting Twisted Machinery released Sub. Optics 1651 | -10/Subcaves | Shifting Twisted Machinery released Flamer 1655 | -10/Subcaves | Shifting Twisted Machinery released Scrap Shield 1720 | -10/Subcaves | A swath of the cavern ceiling suddenly collapsed 1752 | -10/Subcaves | Core integrity fell below 50% 2005 | -10/Subcaves | Visited Clippyterm 2009 | -10/Subcaves | Identified exit to Recycling 2009 | -10/Subcaves | Learned Research machine intel 2152 | -10/Subcaves | Learned location of Zion (-7) 2152 | -10/Subcaves | Met a Zionite searching for "candidates" 2211 | -10/Subcaves | Visited 4L-MR0's lab 2226 | -10/Subcaves | Found Cargo Legs 2227 | -10/Subcaves | Attached Cargo Legs, gained temporary slots: Utility x2 2534 | -10/Subcaves | Core integrity fell below 20% 2551 | -10/Subcaves | Destroyed by Autobeam Turret with Autobeam Last Messages --------------- 02393_ Destroyed Aluminum Leg. 02394_ G-47 Trooper reactivates. 02400_ Splicing G-47 Trooper... Shutting down primary systems. 02400_ Sneak attack on G-47 Trooper. 02400_ G-47 Trooper destroyed. 02402_ Acquired 10 matter. 02522_ Triggered Piercing Trap. 02522_ Spikes shoot up from the floor. 02522_ Critical hit (Impale). 02531_ S-10 Pest destroyed. 02539_ Flight Unit fries itself beyond repair. 02539_ Grenade Launcher destroyed. 02542_ Flight Unit fries itself beyond repair. 02543_ Lgt. Ion Engine fries itself beyond repair. 02546_ Flight Unit fries itself beyond repair. 02547_ Imp. Ion Engine destroyed. 02548_ Splicing Autobeam Turret... 02548_ Autobeam Turret system unaffected. Map ----- +----------------------------------------------------+ | ?????????????????????????????????????????????????? | | ?????????????????????????????????????????????????? | | ?????????????????????????????????????????????????? | | ?????????????????????????????????????????????????? | | ?????????????????????????????????????????????????? | | ?????????????????????????????????????????????????? | | ?????????????????????????????????????????????????? | | ?????????????????????????????????????????????????? | | ???????????????????????????????????????? ####???? | | ???????????????????????????????????????? ###? | | ????????????????????????????????????????? # | | ????????????????????????????????????? ??# | | ????????????????????????????????????? ## | | ???????????????????????????????????? | | ????????????????????????????????????? | | ??????????????????????????????????????# | | ???????????????????????????????????????# | | ???????????????????????????????????? ### | | ????????????????????????????????????? | | ?????????????????????########???????? ## | | ?????????????????????#""" "#???????? ### | | ?????????????????????#" #####??## ## | | ?????????????????????#" #### # #### ## | | ????????????????????##""t #?###??## | | ????????????????????#> #???????## | | ?????????????????????#""t@ #??######### | | ?????????????????????#" ## #### ## ## | | ?????????????????????#" ### ### # | | ?????????????????????#""" "#?#### ^ # # ## | | ?????????????????????########???##^ ### ####### | | ????????????????????????????##### ##?###?????? | | ?????##?##????????##????????# # ^ #??????????? | | ?#### ## ##?????## ##????##?# ^ #??????????? | | ## #?????# ##???# ## # ^ #??????????? | | #?????## #???# ## ^ ##??????????? | | #??????# #???## ####^ #???????????? | | ##??????# #???# #??### #???????????? | | # #########?# ###???## ##????# ##??????????? | | # ## ### ##?????## ##???## #??????????? | | ## ######??# #???# ##??????????? | | ?## ## ##### ##???## #???????????? | | ??### ## ## # ### ####?# #???????????? | | ????## ## # ### ##???????????? | | ###??# #### #????????????? | | #?# #??# ## # # ##???????????? | | ## ##?# ## #### #???????????? | | ### % ## #???????????? | | ## % ## ##??????????? | | # ## ### ##?????????? | | # ### ##?### #?????????? | +----------------------------------------------------+ Best States ------------- Heat Dissipation 25 Energy Generation 12 Energy Capacity 265 Matter Stores 300 Matter Capacity 300 Sight Range 16 Terrain Scan Density 10 Armor Coverage 800 Evasion (%) 55 Recoil Reduction 2 Item Schematics ----------------- None Robot Schematics ------------------ None Fabricated ------------ Nothing Alien Tech Used ----------------- None Achievements -------------- None Challenges ------------ None Game ------ Seed GravmagArmageddonRouter Manual? 0 Play Time 00:18:00 Cumulative 296.9 hours Start 2024.08.11 @ 17:03:41 End 2024.08.11 @ 17:19:54 Sessions 1 Manual Loads 0 Difficulty Rogue Special Mode None Game No. 296 Rogue 291 Adventurer 5 Explorer 0 Win Type - Total 5 Types 4/0/0/1/0/0/0/0/0 Lore% 57 Gallery% 78 Achievement% 66 Wizard Run 0 Options --------- Layout 1 ASCII 0 Keyboard 0 Movement Mouse Keybinds 0 Fullscreen 1 Font 24/Terminus Map View 50x35 Zoom Use 0% Tactical HUD 1 Map Filters NONE Filters NONE Steam 1 RUN: 3d488ece-0daa-4b78-8832-b41003014ae5